Workbook

Sheet 汇总
A1: 种植业、地方优势特色农产品、农业设施保险汇总表（2025.7-2025.8）
A2: 申请单位（业务章）： | Q2: 审核单位（盖章）：
A3: 险种名称 | B3: 承保农户数（户次） | C3: 承保数量（亩/头） | D3: 单位保额（元/亩、头） | E3: 费率 | F3: 单位保险费（元/亩、头） | G3: 总保险费（元） | H3: 保费构成 | R3: 农户已缴保费（元） | S3: 申请补贴（元）
H4: 中央财政 | J4: 省级财政 | L4: 设区市财政 | N4: 县（市、区）财政 | P4: 农户自缴
H5: 比例 | I5: 金额（元） | J5: 比例 | K5: 金额（元） | L5: 比例 | M5: 金额（元） | N5: 比例 | O5: 金额（元） | P5: 比例 | Q5: 金额（元）
A6: 江苏省中央财政补贴性大豆种植保险 | B6: 1 | C6: 32.00 | D6: 500.00 | E6: 5.5% | F6: 27.50 | G6: 880.00 | H6: 35% | I6: 308 | J6: 25% | K6: 220 | L6: 0.00 | M6: 0.00 | N6: 20% | O6: 176 | P6: 20% | Q6: 176.00 | R6: 176.00 | S6: =O6+K6+I6 -> 704.00
A7: 江苏省中央财政补贴性玉米完全成本保险 | B7: 3 | C7: 417.50 | D7: 1000.00 | E7: 3% | F7: 30.00 | G7: 12525.00 | H7: 35% | I7: 4383.75 | J7: 30% | K7: 3757.5 | L7: 0.00 | M7: 0.00 | N7: 30% | O7: 3757.50 | P7: 5% | Q7: 626.25 | R7: 626.25 | S7: 11898.75
A8: 江苏省地方财政补贴性设施大棚保险 | B8: 2 | C8: 68.00 | D8: 5000/1000 | E8: 2.7%/18% 1.1%/18% | F8: 315/235 | G8: 18060.00 | H8: 0% | I8: 0.00 | J8: 0% | K8: 0.00 | L8: 0.00 | M8: 0.00 | N8: 90% | O8: 16254 | P8: 10% | Q8: 1806.00 | R8: 1806.00 | S8: 16254.00
A9: 江苏省地方财政补贴性棚内作物种植保险 | B9: 1 | C9: 26.00 | D9: 4000.00 | E9: 6.0% | F9: 240.00 | G9: 6240.00 | H9: 0% | I9: 0.00 | J9: 0% | K9: 0.00 | L9: 0.00 | M9: 0.00 | N9: 80% | O9: 4992 | P9: 20% | Q9: 1248.00 | R9: 1248.00 | S9: 4992.00
A10: 江苏省地方财政补贴型露地葡萄种植保险 | B10: 9 | C10: 218.10 | D10: 1000.00 | E10: 8.0% | F10: 80.00 | G10: 17448.00 | H10: 0% | I10: 0.00 | J10: 0% | K10: 0.00 | L10: 0.00 | M10: 0.00 | N10: 70% | O10: 12213.6 | P10: 30% | Q10: 5234.40 | R10: 5234.40 | S10: 12213.60
A11: 合计 | B11: =SUM(B6:B10) -> 16.00 | C11: =SUM(C6:C10) -> 761.60 | G11: =SUM(G6:G10) -> 55153.00 | I11: =SUM(I6:I10) -> 4691.75 | K11: =SUM(K6:K10) -> 3977.50 | O11: =SUM(O6:O10) -> 37393.10 | Q11: 9090.65 | R11: 9090.65 | S11: 46062.35
A12: 保险公司负责人： 保险公司复核人： 保险公司制表人：

Sheet 大豆
A1: 种植业明细表（险种名称：江苏省中央财政补贴性大豆种植保险 单位保额：500元/亩 保期：2025.6-2025.12）
A2: 序号 | B2: 乡镇 | C2: 投保人/被保险人 | D2: 种植地址 | E2: 保单号 | F2: 户数 | G2: 数量（亩、头） | H2: 自缴保费合计（元） | I2: 总保费（元） | J2: 各级财政补贴（元） | K2: 汇款日期 | L2: 汇款金额 | M2: 汇款人 | N2: 交易流水号（网银回单） | O2: 备注
A3: 1 | B3: 金沙街道 | C3: 李国进 | D3: 南通市通州区金沙街道平桥镇村 | E3: ANAJF0360025Q050000Z | F3: 1 | G3: 32 | H3: 176.00 | I3: 880.00 | J3: 704.00 | K3: 2025-07-18 | L3: 176.00 | M3: 李国进 | N3: 250G619922D3
B6: 合计 | F6: =SUM(F3:F5) -> 1 | G6: =SUM(G3:G5) -> 32.00 | H6: =SUM(H3:H5) -> 176.00 | I6: =SUM(I3:I5) -> 880.00 | J6: =SUM(J3:J5) -> 704.00 | L6: =SUM(L3:L5) -> 176.00

Sheet 玉米
A1: 种植业明细表（险种名称：江苏省中央财政补贴性玉米完全成本保险 单位保额：1000元/亩 保期：2025.7-2025.12）
A2: 序号 | B2: 乡镇 | C2: 投保人/被保险人 | D2: 种植地址 | E2: 保单号 | F2: 户数 | G2: 数量（亩、头） | H2: 自缴保费合计（元） | I2: 总保费（元） | J2: 各级财政补贴（元） | K2: 汇款日期 | L2: 汇款金额 | M2: 汇款人 | N2: 交易流水号（网银回单） | O2: 备注
A3: 1 | B3: 金沙街道 | C3: 李国进 | D3: 南通市通州区金沙街道平桥镇村 | E3: ANAJF0366A25Q050000O | F3: 1 | G3: 44 | H3: 66.00 | I3: 1,320.00 | J3: 1,254.00 | K3: 2025-07-18 | L3: 66.00 | M3: 李国进 | N3: 250G619922D3; 250G619922D3
A4: 2 | B4: 金沙街道 | C4: 房自民 | D4: 南通市通州区金沙街道平桥镇村、新三园村、虹西村 | E4: ANAJF0366A25Q050002C | F4: 1 | G4: 44 | H4: 65 | I4: 1,305 | J4: 1,240 | K4: 2025-08-28 | L4: 65 | M4: 房自民 | N4: 250H464506F0
A5: 3 | B5: 金沙街道 | C5: 张育华 | D5: 南通市通州区金沙街道平桥镇村 | E5: ANAJF0366A25Q050001I | F5: 1 | G5: 330 | H5: 495 | I5: 9,900 | J5: 9,405 | K5: 2025-08-27 | L5: 495 | M5: 张育华 | N5: 250H810748E7
B6: 合计 | F6: =SUM(F3:F5) -> 3 | G6: 417.50 | H6: 626.25 | I6: 12525.00 | J6: 11898.75 | L6: =SUM(L3:L5) -> 626.25

Sheet 设施大棚
A1: 地方优势特色农产品、农业设施保险明细表（险种名称：江苏省地方财政补贴性设施大棚保险 单位保额： 棚膜1000元/亩、钢架5000元/亩 保期：2025.7-2026.7）
A2: 序号 | B2: 乡镇 | C2: 投保人/被保险人 | D2: 种植地址 | E2: 保单号 | F2: 户数 | G2: 数量（亩、头） | H2: 自缴保费合计（元） | I2: 总保费（元） | J2: 各级财政补贴（元） | K2: 汇款日期 | L2: 汇款金额 | M2: 汇款人 | N2: 交易流水号（网银回单） | O2: 备注
A3: 1 | B3: 金沙街道 | C3: 杨传省 | D3: 南通市通州区金沙街道平桥镇村 | E3: ANAJF0388425Q050001H | F3: 1 | G3: 26 | H3: 819 | I3: 8,190 | J3: 7,371 | K3: 2025-07-08 | L3: 819 | M3: 杨传省 | N3: 250G235161B3
A4: 2 | B4: 金沙街道 | C4: 王竹青 | D4: 南通市通州区金沙街道平桥镇村、港北村 | E4: ANAJF0388425Q050002C | F4: 1 | G4: 42 | H4: 987 | I4: 9,870 | J4: 8,883 | K4: 2025-07-22 | L4: 987 | M4: 王竹青 | N4: 250G167488E0
B7: 合计 | F7: =SUM(F3:F6) -> 2 | G7: =SUM(G3:G6) -> 68.00 | H7: =SUM(H3:H6) -> 1806.00 | I7: =SUM(I3:I6) -> 18060.00 | J7: =SUM(J3:J6) -> 16254.00 | L7: =SUM(L3:L6) -> 1806.00

Sheet 棚内作物
A1: 地方优势特色农产品、农业设施保险明细表（险种名称：江苏省地方财政补贴性棚内作物种植保险 单位保额：4000元/亩 保期：2025.7-2026.7）
A2: 序号 | B2: 乡镇 | C2: 投保人/被保险人 | D2: 种植地址 | E2: 保单号 | F2: 户数 | G2: 数量（亩、头） | H2: 自缴保费合计（元） | I2: 总保费（元） | J2: 各级财政补贴（元） | K2: 汇款日期 | L2: 汇款金额 | M2: 汇款人 | N2: 交易流水号（网银回单） | O2: 备注
A3: 1 | B3: 金沙街道 | C3: 杨传省 | D3: 南通市通州区金沙街道平桥镇村 | E3: ANAJF0387225Q050001Z | F3: 1 | G3: 26 | H3: 1,248 | I3: 6,240 | J3: 4,992 | K3: 2025-07-08 | L3: 1,248 | M3: 杨传省 | N3: 250G235161B3
B6: 合计 | F6: =SUM(F3:F5) -> 1 | G6: =SUM(G3:G5) -> 26.00 | H6: =SUM(H3:H5) -> 1248.00 | I6: =SUM(I3:I5) -> 6240.00 | J6: =SUM(J3:J5) -> 4992.00 | L6: =SUM(L3:L5) -> 1248.00

Sheet 露地葡萄
A1: 地方优势特色农产品、农业设施保险明细表（险种名称：江苏省地方财政补贴型露地葡萄种植保险 单位保额：1000/亩 保期：2025.7-2025.12）
A2: 序号 | B2: 乡镇 | C2: 投保人/被保险人 | D2: 种植地址 | E2: 保单号 | F2: 户数 | G2: 数量（亩、头） | H2: 自缴保费合计（元） | I2: 总保费（元） | J2: 各级财政补贴（元） | K2: 汇款日期 | L2: 汇款金额 | M2: 汇款人 | N2: 交易流水号（网银回单） | O2: 备注
A3: 1 | B3: 金沙街道 | C3: 王怀森 | D3: 南通市通州区金沙镇金余村 | E3: ANAJF0369425Q050000I | F3: 1 | G3: 29.5 | H3: 708 | I3: 2,360 | J3: 1,652 | K3: 2025-07-14 | L3: 708 | M3: 王怀森 | N3: 250G553387C4
A4: 2 | B4: 金沙街道 | C4: 王传云 | D4: 南通市通州区金沙镇金余村 | E4: ANAJF0369425Q050008H | F4: 1 | G4: 15 | H4: 360 | I4: 1,200 | J4: 840 | K4: 2025-07-14 | L4: 360 | M4: 王传云 | N4: 250G220319C4
A5: 3 | B5: 金沙街道 | C5: 王志根 | D5: 南通市通州区金沙镇金余村 | E5: ANAJF0369425Q050002V | F5: 1 | G5: 20 | H5: 480 | I5: 1,600 | J5: 1,120 | K5: 2025-07-14 | L5: 480 | M5: 王志根 | N5: 250G019226C4
A6: 4 | B6: 金沙街道 | C6: 李正龙 | D6: 南通市通州区金沙镇金余村 | E6: ANAJF0369425Q050005U | F6: 1 | G6: 26.5 | H6: 636 | I6: 2,120 | J6: 1,484 | K6: 2025-07-14 | L6: 636 | M6: 李正龙 | N6: 250G917570C5
A7: 5 | B7: 金沙街道 | C7: 胡宝 | D7: 南通市通州区金沙镇金余村 | E7: ANAJF0369425Q050003V | F7: 1 | G7: 22.1 | H7: 530.4 | I7: 1,768 | J7: 1,237.6 | K7: 2025-07-14 | L7: 530.4 | M7: 胡宝 | N7: 250G921908C4
A8: 6 | B8: 金沙街道 | C8: 胡宪法 | D8: 南通市通州区金沙镇金余村 | E8: ANAJF0369425Q050007H | F8: 1 | G8: 25.5 | H8: 612 | I8: 2,040 | J8: 1,428 | K8: 2025-07-15 | L8: 612 | M8: 王明燕（配偶） | N8: 250G724160C6 | O8: 本人银行账号冻结，配偶代其缴款
A9: 7 | B9: 金沙街道 | C9: 孙苗全 | D9: 南通市通州区金沙镇金余村 | E9: ANAJF0369425Q050006H | F9: 1 | G9: 26.5 | H9: 636 | I9: 2,120 | J9: 1,484 | K9: 2025-07-14 | L9: 636 | M9: 孙苗全 | N9: 250G420493C5
A10: 8 | B10: 金沙街道 | C10: 尹建伟 | D10: 南通市通州区金沙镇金余村 | E10: ANAJF0369425Q050001I | F10: 1 | G10: 26.5 | H10: 636 | I10: 2,120 | J10: 1,484 | K10: 2025-07-15 | L10: 636 | M10: 尹建伟 | N10: 250G459599C5
A11: 9 | B11: 金沙街道 | C11: 李正江 | D11: 南通市通州区金沙镇金余村 | E11: ANAJF0369425Q050004V | F11: 1 | G11: 26.5 | H11: 636 | I11: 2,120 | J11: 1,484 | K11: 2025-07-14 | L11: 636 | M11: 李正江 | N11: 250G325559C4
B12: 合计 | F12: =SUM(F3:F11) -> 9 | G12: =SUM(G3:G11) -> 218.10 | H12: =SUM(H3:H11) -> 5234.40 | I12: =SUM(I3:I11) -> 17448.00 | J12: =SUM(J3:J11) -> 12213.60 | L12: =SUM(L3:L11) -> 5234.40
